bitfinex/quotes_BTCUSD_20220101
["timestamp","ask_amount","ask_price","bid_price","bid_amount"]
[1641033871093,0.32145965,47002.0,46999.0,0.00021909]
[1641033871994,0.84730582,47007.0,46999.0,0.00021909]
[1641033872194,0.053204,47006.0,46999.0,0.00021909]
[1641033872695,0.00013239,47005.0,46999.0,0.00021909]
[1641033872897,0.25648287,47003.0,46999.0,0.00021909]
[1641033874159,0.106459,47002.0,46999.0,0.00021909]
[1641033875055,0.25648287,47003.0,46999.0,0.00021909]
[1641033875855,0.00013239,47005.0,46999.0,0.00021909]
[1641033876759,0.00013239,47005.0,47003.0,0.00126388]
[1641033876958,0.00013239,47005.0,47004.0,0.340285]
[1641033877210,0.00013239,47005.0,47004.0,0.34043106]
[1641033877803,0.00013239,47005.0,47004.0,0.00014606]
[1641033878004,0.00013239,47005.0,47004.0,0.02429553]
[1641033878408,0.00013239,47005.0,47004.0,0.36458053]
[1641033878606,0.00874239,47005.0,47004.0,0.36458053]
[1641033878805,0.00874239,47005.0,47004.0,0.02429553]
[1641033879206,0.00874239,47005.0,47004.0,0.04380626]
[1641033879409,0.00874239,47005.0,47004.0,0.02277913]
[1641033880608,0.00874239,47005.0,47004.0,0.0032684]
[1641033886996,0.00874239,47005.0,47004.0,0.3435534]
[1641033887200,0.00874239,47005.0,47004.0,0.6324565]
[1641033887397,0.00874239,47005.0,47004.0,0.34361681]
[1641033888446,0.00874239,47005.0,47004.0,0.00333181]
[1641033888849,0.00874239,47005.0,47004.0,0.02201372]
[1641033889447,0.00874239,47005.0,47004.0,0.00333181]
[1641033890449,0.11520139,47005.0,47004.0,0.00333181]
[1641033890648,0.00874239,47005.0,47004.0,0.00333181]
[1641033892502,0.11520139,47005.0,47004.0,0.00333181]
[1641033892895,0.21520139,47005.0,47004.0,0.00333181]
[1641033893095,0.53520139,47005.0,47004.0,0.00333181]
[1641033893294,0.21520139,47005.0,47004.0,0.00333181]
[1641033893496,0.33202803,47005.0,47004.0,0.00333181]
[1641033894196,0.11520139,47005.0,47004.0,0.00333181]
[1641033894399,0.21520139,47005.0,47004.0,0.00333181]
[1641033894999,0.23202803,47005.0,47004.0,0.00333181]
[1641033895197,0.55586084,47005.0,47004.0,0.00333181]
[1641033896051,0.23202803,47005.0,47004.0,0.00333181]
[1641033896453,0.13202803,47005.0,47004.0,0.00333181]
[1641033897660,0.11520139,47005.0,47004.0,0.00333181]
[1641033899458,0.44467665,47005.0,47004.0,0.00333181]
[1641033899705,0.54467665,47005.0,47004.0,0.00333181]
[1641033900303,0.59467665,47005.0,47004.0,0.00333181]
[1641033900502,0.21520139,47005.0,47004.0,0.00333181]
[1641033900904,0.11520139,47005.0,47004.0,0.00333181]
[1641033901903,0.00874239,47005.0,47004.0,0.00333181]
[1641033902304,0.11520139,47005.0,47004.0,0.00333181]
[1641033902908,0.00874239,47005.0,47004.0,0.00333181]
[1641033903555,0.00874239,47005.0,47004.0,0.00318575]
[1641033903955,0.00874239,47005.0,47004.0,0.00333181]
[1641033906459,0.00874239,47005.0,47004.0,0.34361681]
[1641033906657,0.13475778,47009.0,47005.0,0.96]
[1641033906859,0.13475778,47009.0,47008.0,1.11156184]
[1641033907059,0.00889113,47017.0,47010.0,0.32850329]
[1641033907306,0.00889113,47017.0,47016.0,0.00121859]
[1641033907504,0.0001,47026.0,47018.0,0.340285]
[1641033907707,0.0002,47027.0,47025.0,0.00127198]
[1641033907905,0.0002,47027.0,47026.0,0.340285]
[1641033908304,0.00047387,47027.0,47026.0,0.60916524]
[1641033908505,0.01769387,47027.0,47026.0,0.92751286]
[1641033908704,0.01769387,47027.0,47026.0,0.340285]
[1641033909104,0.01769387,47027.0,47026.0,0.34459724]
[1641033909305,0.01769387,47027.0,47026.0,0.36359843]
[1641033909505,0.0003,47032.0,47028.0,0.00123943]
[1641033909804,0.0003,47032.0,47029.0,0.340285]
[1641033910806,0.0003,47032.0,47029.0,0.393444]
[1641033911251,0.0003,47032.0,47029.0,0.41224242]
[1641033911454,0.0002,47031.0,47029.0,0.41224242]
[1641033911653,0.0001,47034.0,47032.0,0.44077817]
[1641033911852,0.0001,47034.0,47033.0,0.69572941]
[1641033912052,0.0001,47034.0,47033.0,0.64258041]
[1641033912252,0.0001,47034.0,47033.0,0.64169612]
[1641033912454,0.00871,47034.0,47033.0,0.64298128]
[1641033912654,0.0001,47041.0,47038.0,0.9612112]
[1641033912859,0.00038093,47044.0,47041.0,0.34151657]
[1641033913157,0.0003,47052.0,47042.0,0.340285]
[1641033913358,0.00891293,47062.0,47045.0,0.1]
[1641033913555,0.0001,47061.0,47051.0,0.1]
[1641033913755,0.0001,47061.0,47052.0,0.00125773]
[1641033913756,0.00049296,47054.0,47052.0,0.00125773]
[1641033914057,0.0001,47061.0,47053.0,1.09465191]
[1641033914254,0.0049,47078.0,47060.0,0.1]
[1641033914455,0.0001,47071.0,47069.0,0.1]
[1641033914716,0.0001,47071.0,47069.0,0.35596152]
[1641033914908,0.0001,47071.0,47069.0,0.35586152]
[1641033915107,0.0001,47071.0,47070.0,0.23385426]
[1641033915306,0.0001,47071.0,47070.0,0.55210188]
[1641033915504,0.0999,47092.0,47070.0,0.55210188]
[1641033915505,0.33053251,47079.0,47072.0,0.09604717]
[1641033915705,0.33053251,47079.0,47073.0,0.43877052]
[1641033916010,0.33053251,47079.0,47078.0,0.0995]
[1641033916204,0.33053251,47079.0,47078.0,0.439134]
[1641033916405,0.00010554,47079.0,47078.0,0.4403828]
[1641033916607,0.00010554,47079.0,47078.0,0.4401828]
[1641033916807,0.00010554,47079.0,47078.0,0.4400828]
[1641033917006,0.00010554,47079.0,47078.0,0.44028427]
[1641033917208,0.00010554,47079.0,47078.0,0.44018427]
[1641033917406,0.00010554,47079.0,47078.0,0.46077019]
[1641033917608,0.00010554,47079.0,47078.0,0.46102184]
[1641033917806,0.00010554,47079.0,47078.0,0.11998592]
[1641033918006,0.00010554,47079.0,47078.0,0.02068592]
[1641033918206,0.21326554,47079.0,47078.0,0.11998592]
[1641033918451,0.00028876,47079.0,47078.0,0.14004918]
[1641033918658,0.002,47089.0,47083.0,8e-05]
[1641033918951,0.002,47089.0,47088.0,0.00112488]
[1641033919150,0.002,47089.0,47088.0,0.44015888]
[1641033919352,0.002,47089.0,47088.0,0.44005888]
[1641033919551,0.002,47089.0,47088.0,0.43995888]
[1641033919753,0.00891184,47098.0,47088.0,0.44416719]
[1641033919754,0.32280584,47095.0,47088.0,0.44416719]
[1641033919951,0.00891184,47098.0,47094.0,0.0992]
[1641033920152,0.00032864,47097.0,47093.0,0.10126404]
[1641033920354,0.00032864,47097.0,47093.0,0.10116404]
[1641033920551,0.00031038,47096.0,47093.0,0.10106404]
[1641033920752,0.00031038,47096.0,47093.0,0.00186404]
[1641033920952,0.29946812,47095.0,47093.0,0.00176404]
[1641033921152,0.29946812,47095.0,47093.0,0.00166404]
[1641033921360,0.00027387,47094.0,47093.0,0.00166404]
[1641033921553,1.4908893,47094.0,47093.0,0.00156404]
[1641033921752,1.5417893,47094.0,47093.0,4.04e-06]
[1641033921953,1.6417893,47094.0,47093.0,4.04e-06]
[1641033922206,2.08832356,47094.0,47093.0,4.04e-06]
[1641033922401,2.08832356,47094.0,47088.0,0.00420831]
[1641033922402,2.17783599,47094.0,47088.0,0.00420831]
[1641033922601,0.0009,47089.0,47088.0,0.00420831]
[1641033922802,0.0009,47089.0,47077.0,0.02181896]
[1641033922803,0.59214769,47089.0,47077.0,0.02181896]
[1641033923002,0.053123,47082.0,47077.0,0.02181896]
[1641033923202,0.43508452,47079.0,47077.0,0.02181896]
[1641033923404,0.22998664,47078.0,47077.0,0.02181896]
[1641033923601,0.22998664,47078.0,47077.0,0.0991]
[1641033924702,0.22998664,47078.0,47075.0,0.12001784]
[1641033924901,0.01682664,47076.0,47075.0,0.12001784]
[1641033925104,0.22998664,47076.0,47075.0,0.0991]
[1641033925302,0.22998664,47076.0,47075.0,0.09917303]
[1641033926653,0.22998664,47076.0,47075.0,7.303e-05]
[1641033926851,0.32998664,47076.0,47075.0,7.303e-05]
[1641033927049,0.42998664,47076.0,47073.0,0.00010955]
[1641033927249,0.21316,47074.0,47073.0,0.00010955]
[1641033927449,1.14406,47074.0,47073.0,0.00010955]
[1641033927653,1.24406,47074.0,47073.0,0.00010955]
[1641033928050,0.41406,47074.0,47073.0,0.00010955]
[1641033928650,0.41527723,47074.0,47068.0,0.0089121]
[1641033928850,0.9609,47069.0,47068.0,0.0089121]
[1641033929049,1.37533262,47069.0,47068.0,0.0089121]
[1641033929254,0.41533262,47069.0,47068.0,0.0089121]
[1641033929451,0.41443262,47069.0,47068.0,0.0089121]
[1641033929712,0.74737515,47069.0,47068.0,0.0089121]
[1641033929906,1.07954512,47069.0,47068.0,0.0089121]
[1641033930307,1.07954512,47069.0,47058.0,0.3195983]
[1641033930506,0.266301,47068.0,47067.0,0.00215539]
[1641033930704,0.266301,47068.0,47067.0,0.00227449]
[1641033931306,0.274911,47068.0,47067.0,0.00227449]
[1641033935551,0.22177,47068.0,47067.0,0.00227449]
[1641033936553,0.00861,47068.0,47067.0,0.00227449]
[1641033936752,0.00861,47068.0,47067.0,0.62716819]
[1641033936957,0.00861,47068.0,47067.0,0.63266175]
[1641033937207,0.00861,47068.0,47067.0,0.34336625]
[1641033937399,0.00861,47068.0,47067.0,0.36228387]
[1641033937599,0.00861,47068.0,47067.0,0.02119211]
[1641033938400,0.22177,47068.0,47067.0,0.02119211]
[1641033938601,0.22177,47068.0,47067.0,0.00227449]
[1641033939404,0.22191047,47068.0,47067.0,0.00227449]
[1641033939604,0.51191047,47068.0,47067.0,0.00227449]
[1641033939803,0.22191047,47068.0,47067.0,0.00227449]
[1641033940001,0.32191047,47068.0,47067.0,0.00227449]
[1641033941452,0.31330047,47068.0,47067.0,0.00227449]
[1641033942353,0.21330047,47068.0,47067.0,0.00227449]
[1641033942554,0.31330047,47068.0,47067.0,0.00227449]
[1641033943756,0.21330047,47068.0,47067.0,0.10137449]
[1641033945003,0.23012711,47068.0,47067.0,0.00227449]
[1641033946804,0.23873711,47068.0,47067.0,0.00227449]
[1641033947912,0.23963711,47068.0,47067.0,0.00227449]
[1641033948552,1.07963711,47068.0,47067.0,0.00227449]
[1641033948954,1.07963711,47068.0,47056.0,0.02097918]
[1641033948955,0.9512261,47067.0,47056.0,0.02097918]
[1641033949152,0.30271253,47061.0,47056.0,0.02097918]
[1641033949352,0.21316,47060.0,47057.0,0.00018257]
[1641033949552,0.59682664,47058.0,47057.0,0.00018257]
[1641033949752,0.22998664,47058.0,47057.0,0.00018257]
[1641033950056,0.32998664,47058.0,47050.0,0.00031038]
[1641033950252,0.053152,47054.0,47050.0,0.00031038]
[1641033950452,0.053152,47054.0,47052.0,0.00891252]
[1641033950653,0.01682664,47053.0,47048.0,0.10821775]
[1641033950855,0.51372157,47057.0,47048.0,0.08955733]
[1641033951054,0.51372157,47057.0,47044.0,0.72751751]
[1641033951055,0.05,47051.0,47044.0,0.72751751]
[1641033951258,0.053158,47048.0,47044.0,0.72751751]
[1641033951465,0.36277866,47047.0,47045.0,9.129e-05]
[1641033951654,0.46277866,47047.0,47045.0,9.129e-05]
[1641033951855,0.05,47046.0,47045.0,9.129e-05]
[1641033952504,0.053167,47044.0,47042.0,0.00014606]
[1641033955305,0.103167,47044.0,47042.0,0.00014606]
[1641033955501,0.053167,47044.0,47042.0,0.00014606]
[1641033955948,0.01682664,47043.0,47042.0,0.0013388]
[1641033956348,0.01682664,47043.0,47042.0,0.00119274]
[1641033957349,0.22998664,47043.0,47042.0,0.00119274]
[1641033957551,0.27998664,47043.0,47042.0,0.00119274]
[1641033960509,0.28010658,47043.0,47042.0,0.00119274]
[1641033962910,0.28010658,47043.0,47042.0,0.09075007]
[1641033962911,0.21327994,47043.0,47042.0,0.09075007]
[1641033963953,0.00011994,47043.0,47042.0,0.39587445]
[1641033964152,0.00011994,47043.0,47042.0,2.61402689]
[1641033964362,0.00011994,47043.0,47042.0,2.32366956]
[1641033966355,0.00011994,47043.0,47042.0,0.09075007]
[1641033966554,0.21327994,47043.0,47042.0,0.09075007]
[1641033967613,0.23010658,47043.0,47042.0,0.09075007]
[1641033969412,0.60624616,47043.0,47042.0,0.09075007]
[1641033969612,0.75624616,47043.0,47042.0,0.09075007]
[1641033970710,0.77554149,47043.0,47042.0,0.09075007]
[1641033971152,0.77554149,47043.0,47042.0,0.00119274]
[1641033971751,0.79495651,47043.0,47042.0,0.00119274]
[1641033971951,0.77566118,47043.0,47042.0,0.00119274]
[1641033972754,0.77452056,47043.0,47042.0,0.00119274]
[1641033973052,0.78313056,47043.0,47042.0,0.09075007]
[1641033973752,0.80181532,47043.0,47042.0,0.00119274]
[1641033973953,0.78354092,47043.0,47042.0,0.09075007]
[1641033974555,0.45740134,47043.0,47042.0,0.09075007]
[1641033974803,0.45865743,47043.0,47042.0,0.09075007]
[1641033975604,0.48004151,47043.0,47042.0,0.09075007]
[1641033975806,0.46010066,47043.0,47042.0,0.09075007]
[1641033976406,0.46871066,47043.0,47042.0,0.09075007]
[1641033976606,0.46871066,47043.0,47042.0,0.00119274]
[1641033976607,0.79801814,47043.0,47042.0,0.00119274]
[1641033976809,0.79661209,47043.0,47042.0,0.00119274]
[1641033977008,0.46853303,47043.0,47042.0,0.09075007]
[1641033977208,0.79990296,47043.0,47042.0,0.09075007]
[1641033977609,0.48923674,47043.0,47042.0,0.09075007]
[1641033977809,0.80091852,47043.0,47042.0,0.09075007]
[1641033978010,0.45460699,47043.0,47042.0,0.09075007]
[1641033978211,0.45460699,47043.0,47042.0,0.00079274]
[1641033978458,0.78419752,47043.0,47042.0,0.00079274]
[1641033978663,0.80510042,47043.0,47042.0,0.00079274]
[1641033978957,0.78439671,47043.0,47042.0,0.00079274]
[1641033979360,0.78268143,47043.0,47042.0,0.00079274]
[1641033979558,0.78231062,47043.0,47042.0,0.00079274]
[1641033979759,0.47545026,47043.0,47042.0,0.00079274]
[1641033980058,0.45454736,47043.0,47042.0,0.09035007]
[1641033980457,0.45454736,47043.0,47042.0,0.09041342]
[1641033980660,0.48183484,47043.0,47042.0,0.09041342]
[1641033980960,0.46119076,47043.0,47042.0,0.09041342]
[1641033981366,0.46119076,47043.0,47042.0,0.00085609]
[1641033981559,0.46119076,47043.0,47042.0,0.09169891]
[1641033981760,0.48231697,47043.0,47042.0,0.09169891]
[1641033981960,0.46363949,47043.0,47042.0,0.00214158]
[1641033982601,0.46363949,47043.0,47042.0,0.09169891]
[1641033982801,0.48462483,47043.0,47042.0,0.09169891]
[1641033983002,0.46349862,47043.0,47042.0,0.09169891]
[1641033983204,0.26349862,47043.0,47042.0,0.09169891]
[1641033983803,0.28521221,47043.0,47042.0,0.09169891]
[1641033984008,0.26422687,47043.0,47042.0,0.09169891]
[1641033984804,0.24740023,47043.0,47042.0,0.09169891]
[1641033985004,0.22568664,47043.0,47042.0,0.09169891]
[1641033985404,0.01722,47043.0,47042.0,0.09169891]
[1641033985702,0.01722,47043.0,47042.0,0.43170391]
[1641033985956,0.01722,47043.0,47042.0,0.09169891]
[1641033986156,0.22566,47043.0,47042.0,0.09169891]
[1641033986756,0.21705,47043.0,47042.0,0.09169891]
[1641033987856,0.21705,47043.0,47042.0,0.08669891]
[1641033988456,0.225659,47043.0,47042.0,0.08669891]
[1641033989714,0.017219,47043.0,47042.0,0.08669891]
[1641033990111,0.017219,47043.0,47042.0,0.08169891]
[1641033990614,0.225659,47043.0,47042.0,0.08169891]
[1641033997419,0.325659,47043.0,47042.0,0.08169891]
[1641033997618,0.425659,47043.0,47042.0,0.08169891]
[1641033998621,1.003178,47042.0,47041.0,0.002]
[1641033998819,1.311618,47042.0,47041.0,0.002]
[1641033999020,1.311618,47042.0,47041.0,0.00016432]
[1641033999522,0.32625434,47041.0,47037.0,0.00023735]
[1641033999721,0.22526664,47038.0,47037.0,0.00023735]
[1641033999920,0.27526664,47038.0,47037.0,0.00023735]
[1641034000621,0.59833264,47038.0,47037.0,0.00023735]
[1641034001054,0.69833264,47038.0,47037.0,0.00023735]
[1641034001257,0.37526664,47038.0,47037.0,0.00023735]
[1641034001855,0.39646453,47038.0,47037.0,0.00023735]
[1641034002057,0.37963789,47038.0,47037.0,0.00023735]
[1641034002855,0.40145325,47038.0,47037.0,0.00023735]
[1641034003055,0.39718693,47038.0,47037.0,0.00023735]
[1641034003255,0.29718693,47038.0,47037.0,0.00023735]
[1641034003455,0.39718693,47038.0,47037.0,0.00023735]
[1641034003957,0.39718693,47038.0,47036.0,0.01]
[1641034003958,0.95,47037.0,47036.0,0.01]
[1641034004156,1.37845264,47037.0,47036.0,0.01]
[1641034004355,1.37845264,47037.0,47027.0,0.31631486]
[1641034004356,0.20844,47033.0,47027.0,0.31631486]
[1641034004560,0.259561,47034.0,47023.0,0.31631486]
[1641034004812,0.45878944,47032.0,47023.0,0.31631486]
[1641034005011,0.50878944,47032.0,47023.0,0.31631486]
[1641034005213,0.60878944,47032.0,47031.0,0.00210955]
[1641034005612,0.66197644,47032.0,47031.0,0.00210955]
[1641034005815,0.71197644,47032.0,47031.0,0.00210955]
[1641034006015,0.159573,47028.0,47021.0,0.002]
[1641034006416,0.20844,47027.0,47022.0,0.00016432]
[1641034006616,0.01682664,47023.0,47022.0,0.00016432]
[1641034006819,0.70342865,47023.0,47022.0,0.00016432]
[1641034007017,1.06186865,47023.0,47022.0,0.00016432]
[1641034007417,1.11186865,47023.0,47022.0,0.00016432]
[1641034007917,1.08383386,47023.0,47022.0,0.00016432]
[1641034008558,1.13702486,47023.0,47022.0,0.00016432]
[1641034008960,1.15574407,47023.0,47022.0,0.00016432]
[1641034009159,1.13377886,47023.0,47022.0,0.00016432]
[1641034009958,1.15317574,47023.0,47022.0,0.00016432]
[1641034010159,1.13445653,47023.0,47022.0,0.00016432]
[1641034010559,1.18445653,47023.0,47022.0,0.00016432]
[1641034010760,0.95,47022.0,47021.0,0.00319325]
[1641034010960,0.22526664,47022.0,47021.0,0.00319325]
[1641034011164,0.32526664,47022.0,47021.0,0.00319325]
[1641034011361,0.31484367,47020.0,47017.0,0.00892229]
[1641034011560,0.20844,47018.0,47017.0,0.00892229]
[1641034011761,0.65844,47018.0,47017.0,0.00892229]
[1641034012217,0.75844,47018.0,47011.0,0.002]
[1641034012413,0.2032909,47018.0,47011.0,0.002]
[1641034012612,0.2032909,47018.0,47012.0,0.00018258]
[1641034013012,0.053202,47015.0,47012.0,0.00018258]
[1641034013210,0.42124467,47013.0,47012.0,0.00018258]
[1641034013413,0.62968467,47013.0,47012.0,0.00018258]
[1641034013712,0.72968467,47013.0,47012.0,0.00018258]
[1641034014411,0.78288567,47013.0,47012.0,0.00018258]
[1641034014611,0.8033542,47013.0,47012.0,0.00018258]
[1641034015015,0.82263737,47013.0,47012.0,0.00018258]
[1641034015215,0.80216884,47013.0,47012.0,0.00018258]
[1641034016063,0.82367187,47013.0,47012.0,0.00018258]
[1641034016265,0.8043887,47013.0,47012.0,0.00018258]
[1641034016465,0.07470403,47013.0,47012.0,0.00018258]
[1641034016667,0.02150303,47013.0,47012.0,0.00018258]
[1641034016865,0.02150303,47013.0,47012.0,0.34018758]
[1641034017066,0.00121334,47013.0,47012.0,2.87933102]
[1641034017364,8.89e-05,47018.0,47013.0,0.33]
[1641034017567,8.89e-05,47018.0,47014.0,0.63781689]
[1641034017764,8.89e-05,47018.0,47014.0,0.63796295]
[1641034017965,8.89e-05,47018.0,47015.0,0.0001278]
[1641034018166,8.89e-05,47018.0,47016.0,0.340005]
[1641034018465,8.89e-05,47018.0,47017.0,9.129e-05]
[1641034018866,8.89e-05,47018.0,47017.0,0.34009629]
[1641034019068,8.89e-05,47018.0,47017.0,0.340005]
[1641034019266,8.89e-05,47018.0,47017.0,9.129e-05]
[1641034020617,0.0532749,47018.0,47017.0,9.129e-05]
[1641034022322,0.0532749,47018.0,47014.0,0.00014606]
[1641034023958,0.053192,47015.0,47014.0,0.00014606]
[1641034024760,0.261632,47015.0,47014.0,0.00014606]
[1641034027308,0.311632,47015.0,47014.0,0.00014606]
[1641034027708,0.42845864,47015.0,47014.0,0.00014606]
[1641034028113,0.00126919,47008.0,47006.0,0.01]
[1641034028508,0.00647889,47008.0,47006.0,0.01]
[1641034028708,1.15965947,47007.0,47006.0,0.01]
[1641034028910,1.91469611,47007.0,47006.0,0.01]
[1641034029108,1.91469611,47007.0,46999.0,0.02120799]
[1641034029109,0.20844,47004.0,46999.0,0.02120799]
[1641034029309,0.20844,47004.0,46998.0,0.01926623]
[1641034029310,0.261662,47002.0,46998.0,0.01926623]
[1641034029511,0.361662,47002.0,46998.0,0.01926623]
[1641034029912,0.461662,47002.0,46998.0,0.01926623]
[1641034030414,0.461662,47002.0,46991.0,0.02261421]
[1641034030811,0.361662,47002.0,46996.0,0.00890956]
[1641034031056,0.27848864,47002.0,46996.0,0.00890956]
[1641034031557,0.32848864,47002.0,46996.0,0.00890956]
[1641034031959,0.42848864,47002.0,46996.0,0.00890956]
[1641034032258,0.42973936,47002.0,46996.0,0.00890956]
[1641034032960,0.42848864,47002.0,47000.0,0.00163995]
[1641034033359,0.47848864,47002.0,47000.0,0.00163995]
[1641034033961,0.95,47001.0,47000.0,0.00163995]
[1641034034160,0.20844,47001.0,47000.0,0.00163995]
[1641034034360,0.30844,47001.0,47000.0,0.00176775]
[1641034035215,0.32526664,47001.0,47000.0,0.00176775]
[1641034035411,0.22526664,47001.0,47000.0,0.00176775]
[1641034035614,0.32526664,47001.0,47000.0,0.00176775]
[1641034036210,0.32476664,47001.0,47000.0,0.00176775]
[1641034036612,0.22476664,47001.0,47000.0,0.00176775]
[1641034037012,0.20914036,47001.0,47000.0,0.00176775]
[1641034037513,1.12904036,47001.0,47000.0,0.00176775]
[1641034037715,1.12904036,47001.0,46996.0,0.00890956]
[1641034037716,0.95,47000.0,46996.0,0.00890956]
[1641034037914,0.207898,46997.0,46996.0,0.00890956]
[1641034038216,0.56155104,46997.0,46991.0,0.002]
[1641034038463,0.05,46996.0,46991.0,0.002]
[1641034038862,0.053224,46994.0,46991.0,0.002]
[1641034042509,0.207898,46993.0,46991.0,0.002]
[1641034042709,0.207898,46992.0,46991.0,0.002]
[1641034043107,0.261127,46992.0,46991.0,0.002]
[1641034044107,0.311127,46992.0,46991.0,0.002]
[1641034044308,0.311127,46992.0,46990.0,0.00119404]
[1641034044507,0.52747045,46991.0,46990.0,0.00119404]
[1641034044706,0.207898,46991.0,46990.0,0.00119404]
[1641034044908,0.307898,46991.0,46990.0,0.00119404]
[1641034045508,0.307898,46991.0,46987.0,0.00864455]
[1641034045708,0.207898,46988.0,46987.0,0.00864455]
[1641034045962,0.311136,46988.0,46987.0,0.00864455]
[1641034046265,0.311136,46988.0,46982.0,0.00890988]
[1641034046266,0.67,46987.0,46982.0,0.00890988]
[1641034046462,0.207898,46983.0,46982.0,0.00890988]
[1641034046663,1.00543699,46983.0,46982.0,0.00890988]
[1641034047062,1.12226363,46983.0,46982.0,0.00890988]
[1641034047464,0.38,46982.0,46978.0,0.72751751]
[1641034047664,0.259731,46982.0,46978.0,0.72751751]
[1641034048064,0.259731,46982.0,46977.0,0.72751751]
[1641034048265,0.259731,46982.0,46978.0,0.02161745]
[1641034048469,0.76,46981.0,46977.0,0.72751751]
[1641034048665,0.32619037,46980.0,46977.0,0.72751751]
[1641034048868,0.05,46979.0,46977.0,0.72751751]
[1641034049065,0.053247,46978.0,46977.0,0.84771515]
[1641034049268,0.053247,46978.0,46977.0,0.86667723]
[1641034049729,0.053247,46978.0,46974.0,0.81229991]
[1641034049730,0.95,46975.0,46974.0,0.81229991]
[1641034049918,1.40916991,46975.0,46974.0,0.70763431]
[1641034050119,2.05064191,46975.0,46967.0,0.93605283]
[1641034050318,2.05064191,46975.0,46954.0,0.92834275]
[1641034050319,0.00123575,46969.0,46954.0,0.92834275]
[1641034050519,0.28059648,46964.0,46954.0,0.92834275]
[1641034050717,0.28059648,46964.0,46958.0,0.32444573]
[1641034050918,0.00123575,46969.0,46958.0,0.32444573]
[1641034051118,0.106515,46964.0,46958.0,0.32444573]
[1641034051317,0.106515,46964.0,46960.0,0.00818671]
[1641034054567,0.02004104,46969.0,46960.0,0.00818671]
[1641034054867,0.02004104,46969.0,46962.0,1.21014111]
[1641034055066,0.02004104,46969.0,46963.0,0.6177984]
[1641034055268,0.053256,46965.0,46963.0,0.27401698]
[1641034055468,0.053256,46965.0,46964.0,0.340277]
[1641034055667,0.053256,46965.0,46962.0,1.50864002]
[1641034055867,0.053256,46965.0,46962.0,1.21014111]
[1641034056270,0.053256,46965.0,46964.0,1.21014111]
[1641034056869,0.053256,46965.0,46963.0,1.21014111]
[1641034057311,0.053256,46965.0,46964.0,0.81485183]
[1641034057612,0.053256,46965.0,46964.0,2.02499294]
[1641034058012,0.053256,46965.0,46962.0,1.21014111]
[1641034058615,0.053256,46965.0,46963.0,0.81572004]
[1641034059013,0.053256,46965.0,46964.0,0.81572004]
[1641034061560,0.053256,46965.0,46964.0,0.81578339]
[1641034061960,0.053256,46965.0,46964.0,6.335e-05]
[1641034064365,0.28910742,46965.0,46964.0,6.335e-05]
[1641034064812,0.33910742,46965.0,46964.0,6.335e-05]
[1641034065010,0.49700542,46965.0,46964.0,6.335e-05]
[1641034065212,0.59700542,46965.0,46964.0,6.335e-05]
[1641034066011,0.69700542,46965.0,46964.0,6.335e-05]
[1641034066211,0.64700542,46965.0,46964.0,6.335e-05]
[1641034066414,0.71663806,46965.0,46964.0,6.335e-05]
[1641034066610,1.03823736,46965.0,46964.0,6.335e-05]
[1641034066812,0.95,46964.0,46962.0,0.00749802]
[1641034067015,0.52612033,46963.0,46962.0,0.00749802]
[1641034067211,0.66,46962.0,46957.0,0.4379]
[1641034067411,0.053269,46960.0,46957.0,0.4379]
[1641034067710,0.45061523,46959.0,46957.0,0.4379]
[1641034067910,0.01682664,46958.0,46957.0,0.4379]
[1641034068109,0.48682664,46958.0,46957.0,0.4379]
[1641034068312,1.00836261,46958.0,46957.0,0.4379]
[1641034068572,0.63836261,46958.0,46957.0,0.4379]
[1641034068771,1.27657261,46958.0,46957.0,0.4379]
[1641034068971,1.27657261,46958.0,46957.0,0.011722]
[1641034069174,1.27780192,46958.0,46957.0,0.011722]
[1641034069372,1.29757128,46958.0,46957.0,0.011722]
[1641034069574,1.29757128,46958.0,46948.0,0.00049084]
[1641034069772,0.207898,46954.0,46948.0,0.00049084]
[1641034069971,0.207898,46950.0,46948.0,0.00049084]
[1641034070173,0.88710004,46949.0,46948.0,0.00049084]
[1641034070374,1.16111648,46949.0,46948.0,0.00049084]
[1641034070572,0.98710004,46949.0,46948.0,0.00049084]
[1641034071276,1.04037904,46949.0,46948.0,0.00049084]
[1641034071474,1.05968537,46949.0,46948.0,0.00049084]
[1641034071872,1.10968537,46949.0,46948.0,0.00049084]
[1641034072516,1.17858597,46949.0,46948.0,0.00049084]
[1641034072719,1.47278367,46949.0,46948.0,0.00049084]
[1641034073117,0.88959047,46949.0,46948.0,0.00049084]
[1641034073519,1.4466278,46949.0,46948.0,0.00049084]
[1641034073722,1.4277272,46949.0,46948.0,0.00049084]
[1641034073920,1.4777272,46949.0,46948.0,0.00049084]
[1641034074120,1.5277272,46949.0,46948.0,0.00049084]
[1641034074623,1.54656864,46949.0,46948.0,0.00049084]
[1641034074818,1.52774131,46949.0,46948.0,0.00049084]
[1641034075622,1.54779641,46949.0,46948.0,0.00049084]
[1641034075822,1.52895497,46949.0,46948.0,0.00049084]
[1641034076469,1.55083022,46949.0,46948.0,0.00049084]
[1641034076668,1.53077512,46949.0,46948.0,0.00049084]
[1641034077670,1.5515269,46949.0,46948.0,0.00049084]
[1641034077872,1.52965165,46949.0,46948.0,0.00049084]
[1641034078573,1.55010136,46949.0,46948.0,0.00049084]
[1641034078774,1.52934958,46949.0,46948.0,0.00049084]
[1641034079721,1.53039657,46949.0,46948.0,0.00049084]
[1641034081319,1.55162036,46949.0,46948.0,0.00049084]
[1641034081516,1.53012366,46949.0,46948.0,0.00049084]
[1641034081717,1.54992902,46949.0,46948.0,0.00049084]
[1641034081916,1.42870523,46949.0,46948.0,0.00049084]
[1641034082217,1.32870523,46949.0,46948.0,0.00049084]
[1641034082617,0.91919236,46949.0,46948.0,0.00049084]
[1641034082817,0.65801536,46949.0,46948.0,0.00049084]
[1641034083217,0.67781742,46949.0,46948.0,0.00049084]
[1641034083470,0.2862457,46957.0,46948.0,0.28176373]
[1641034083471,0.00892081,46957.0,46948.0,0.28176373]
[1641034083673,0.00892081,46957.0,46953.0,0.00129458]
[1641034084271,0.5165816,46962.0,46953.0,0.00129458]
[1641034084472,0.29933972,46959.0,46953.0,0.00129458]
[1641034084874,0.053257,46956.0,46953.0,0.00129458]
[1641034085075,0.64036729,46955.0,46948.0,0.00049084]
[1641034085274,0.64036729,46955.0,46948.0,0.00175544]
[1641034085473,0.64036729,46955.0,46948.0,0.00049084]
[1641034085673,0.6389,46954.0,46948.0,0.00049084]
[1641034085874,0.207898,46953.0,46948.0,0.00049084]
[1641034086074,0.053263,46951.0,46948.0,0.00049084]
[1641034086473,0.53899929,46955.0,46948.0,0.00049084]
[1641034086474,0.6389,46950.0,46948.0,0.00049084]
[1641034087073,0.207898,46949.0,46948.0,0.00049084]
[1641034087620,0.846798,46949.0,46948.0,0.00049084]
[1641034088818,0.6389,46949.0,46948.0,0.00049084]